Cogmind - Beta 12 @@@ ROGUE MODE // 2023.10.07 @ 19:06:02 Player: Trantor Result: Destroyed by S-10 Pest with Light Assault Rifle Performance ------------- Evolutions (1) 500 Regions Visited (6) 1200 Robots Destroyed (79) 395 Value Destroyed (2080) 2080 Prototype IDs (33) 660 Alien Tech Used (0) 0 Bonus (460) 460 TOTAL SCORE: 5295 Bonus ------- High Alert Combat Kills 85 Follower Combat Kills 75 Aligned with FarCom 300 Cogmind --------- Core Integrity 0/400 Matter 290/300 Energy 259/265 System Corruption 0% Temperature Cool (0) Movement Rolling (165) Ox5 Location -8/Mines Parts ------- > --- POWER (1) -------- Improved Ion Engine > --- PROPULSION (3) --- VSS Leg VSS Leg Armored Wheel > --- UTILITY (3) ------ High-capacity Storage Unit Improved Medium Armor Plating Reactive Plating > --- WEAPON (2) ------- Minigun Rocket Launcher > --- INVENTORY (20) --- Improved Ion Engine Aluminum Leg Improved Heat Sink High-capacity Matter Pod (200) Experimental Sensor Array Armor Integrity Analyzer Medium Armor Plating Hardened Light Armor Plating Hardened Light Armor Plating Reactive Plating Shield Generator YOLO Cannon Minigun Minigun Advanced Assault Cannon Proton Missile Launcher Rocket Launcher Rocket Launcher Heavy Flail Peak State ------------ > --- POWER ------------ Improved Ion Engine > --- PROPULSION ------- VSS Leg VSS Leg Armored Wheel > --- UTILITY ---------- High-capacity Storage Unit Improved Medium Armor Plating Reactive Plating > --- WEAPON ----------- Minigun Minigun > --- INVENTORY -------- Improved Ion Engine Improved Heat Sink High-capacity Matter Pod Experimental Sensor Array Armor Integrity Analyzer Medium Armor Plating Hardened Light Armor Plating Hardened Light Armor Plating Reactive Plating Shield Generator YOLO Cannon Minigun Advanced Assault Cannon Proton Missile Launcher Rocket Launcher Rocket Launcher Rocket Launcher Heavy Flail [Rating: 31] Favorites ----------- Power Ion Engine Engine Ion Engine Power Core Light Nuclear Core Propulsion Armored Wheel Leg VSS Leg Wheel Armored Wheel Utility High-capacity Storage Unit Device Improved Heat Sink Storage High-capacity Storage Unit Protection Reactive Plating Weapon Minigun Energy Gun Improved Medium Laser Energy Cannon Particle Cannon Ballistic Gun Minigun Ballistic Cannon Improved Light Cannon Launcher Rocket Launcher Impact Weapon Heavy Flail Build | -11 -10 -10 -9 -9 -9 -8 ------- Run | Jun Mat Min Mat Min Exi Min Slots Evolved 2 | . . . 2 . . . Power . | . . . . . . . Propulsion 1 | . . . 1 . . . Utility 1 | . . . 1 . . . Weapon . | . . . . . . . Parts Attached 80 | . 22 2 44 7 1 4 Power 9 | . 2 . 6 1 . . Engine 8 | . 2 . 5 1 . . Core 1 | . . . 1 . . . Reactor . | . . . . . . . Propulsion 16 | . 5 . 8 1 1 1 Treads . | . . . . . . . Leg 5 | . . . 4 . . 1 Wheel 11 | . 5 . 4 1 1 . Hover . | . . . . . . . Flight . | . . . . . . . Utility 22 | . 5 2 14 1 . . Device 7 | . 1 2 4 . . . Storage 5 | . 3 . 2 . . . Processor . | . . . . . . . Hackware . | . . . . . . . Protection 10 | . 1 . 8 1 . . Artifact . | . . . . . . . Weapon 33 | . 10 . 16 4 . 3 Energy Gun 4 | . 1 . 3 . . . Energy Cannon 5 | . 5 . . . . . Ballistic Gun 8 | . . . 6 1 . 1 Ballistic Cannon 2 | . . . 2 . . . Launcher 11 | . 4 . 4 2 . 1 Special Weapon . | . . . . . . . Impact Weapon 3 | . . . 1 1 . 1 Slashing Weapon . | . . . . . . . Piercing Weapon . | . . . . . . . Special Melee Weapon . | . . . . . . . Unidentified Prototypes 2 | . . 1 1 . . . Parts Lost 14 | . . . 13 . . 1 Power 3 | . . . 3 . . . Propulsion 6 | . . . 5 . . 1 Utility 3 | . . . 3 . . . Weapon 2 | . . . 2 . . . Highest Loss Streak 5 | . . . 5 . . 1 To Critical Strikes . | . . . . . . . Average Slot Usage (%) 98 | . 95 100 96 99 100 100 Engine 11 | . 14 14 10 10 11 11 Leg 12 | . 5 . 6 27 21 21 Wheel 18 | . 22 28 24 5 11 11 Device 6 | . 5 14 13 . . . Storage 11 | . 14 14 11 11 11 11 Protection 11 | . 4 . 8 22 22 22 Energy Gun 2 | . 5 . 4 . . . Energy Cannon 8 | . 22 28 1 . . . Ballistic Gun 7 | . . . 9 11 11 14 Ballistic Cannon 1 | . . . 3 . . . Launcher 3 | . . . 2 6 11 . Impact Weapon 1 | . . . . 3 . 7 Naked Turns . | . . . . . . . Heaviest Build 71 | 14 54 54 70 71 71 70 Greatest Support 36 | 20 24 24 36 36 24 12 Greatest Overweight (x) 5 | . 2 2 2 5 5 5 Average Overweight (x) 2 | . 1 2 1 3 4 5 Largest Inventory Capacity 20 | . 20 20 20 20 20 20 Average Capacity 19 | . 15 20 20 20 20 20 Most Carried 20 | . 16 19 20 20 20 20 Average Carried 18 | . 14 17 19 19 19 19 Final Capacity 20 | 8 20 20 20 20 20 20 Final Carried 20 | 6 16 19 20 20 20 20 Class Distribution -------------------- 100% | Mutant Dominant Class ---------------- Mutant | -10/Materials Mutant | -10/Mines Mutant | -9/Materials Mutant | -9/Mines Mutant | -9/Exiles Mutant | -8/Mines Resources | -11 -10 -10 -9 -9 -9 -8 ----------- Run | Jun Mat Min Mat Min Exi Min Matter Collected 1976 | 200 370 160 1041 108 . 97 Remotely . | . . . . . . . Salvage Created 2422 | . 392 51 1860 55 . 64 Parts 163 | . 32 2 112 16 . 1 Haulers Intercepted 8 | . 2 . 6 . . . Recyclers Shooed . | . . . . . . . Parts Field Recycled . | . . . . . . . Retrieved Matter . | . . . . . . . Parts Self-Destructed . | . . . . . . . Prevented . | . . . . . . . Kills | -11 -10 -10 -9 -9 -9 -8 ------- Run | Jun Mat Min Mat Min Exi Min Combat Hostiles Destroyed 60 | . 12 1 37 8 . 2 Guns 27 | . 1 . 23 1 . 2 Cannons 16 | . 7 1 8 . . . AOE 16 | . 4 . 5 7 . . Classes Destroyed 11 | . 5 . 5 1 . . Worker 1 | . . . 1 . . . Builder 2 | . 2 . . . . . Tunneler 1 | . . . . 1 . . Hauler 8 | . 2 . 6 . . . Recycler 1 | . . . 1 . . . Operator 5 | . 2 . 3 . . . Watcher 1 | . . . 1 . . . Swarmer 17 | . 6 . 3 8 . . Grunt 32 | . 6 1 23 . . 2 Duelist 2 | . . . 2 . . . Sentry 9 | . . . 9 . . . Best Kill Streak 8 | . 4 1 4 8 . 2 Combat Bots Only 8 | . 4 1 4 8 . 2 Max Kills in Single Turn 4 | . 3 1 3 4 . 1 Gunslinging . | . . . . . . . Exploded 4 | . 3 . 2 4 . . Melee . | . . . . . . . Uniques/NPCs Destroyed . | . . . . . . . Combat | -11 -10 -10 -9 -9 -9 -8 -------- Run | Jun Mat Min Mat Min Exi Min Damage Taken 3375 | . 511 51 2242 325 . 246 Core 568 | . 164 . 353 24 . 27 Absorbed by Shields . | . . . . . . . Redirected to Shielding 14 | . 14 . . . . . Regen/Repaired (Parts) 116 | . 56 . 60 . . . Core Remaining (%) 67 | 100 . 34 . . . . Volleys Fired 196 | . 44 3 138 4 . 7 Largest 2 | . 2 2 2 2 . 2 Hottest 136 | . 136 136 95 50 . 50 Shots Fired 336 | . 77 6 235 6 . 12 Gun 203 | . 14 . 175 4 . 10 Cannon 101 | . 52 6 43 . . . Launcher 32 | . 11 . 17 2 . 2 Special . | . . . . . . . Kinetic 156 | . . . 142 4 . 10 Thermal 141 | . 59 6 76 . . . Explosive 24 | . 11 . 9 2 . 2 Electromagnetic 15 | . 7 . 8 . . . Robot Hit Streak 14 | . 10 3 14 1 . 5 Robot Miss Streak 5 | . 3 1 5 2 . 1 Penetration Max . | . . . . . . . Secondary Targets 1 | . . . 1 . . . Max Gunslinging Chain 1 | . . . 1 . . . Shots Hit Robots 201 | . 43 5 142 2 . 9 Core Hits 105 | . 23 2 66 8 . 6 Critical Kills 1 | . . . . 1 . . Critical Parts Destroyed 1 | . . . 1 . . . Critical Strikes 6 | . . . 5 1 . . Burn 3 | . . . 3 . . . Destroy 1 | . . . 1 . . . Blast 1 | . . . 1 . . . Smash 1 | . . . . 1 . . Melee Attacks 6 | . . . 1 3 . 2 Impact 6 | . . . 1 3 . 2 Slashing . | . . . . . . . Piercing . | . . . . . . . Sneak Attacks 1 | . . . . 1 . . Combat Hostiles . | . . . . . . . Follow-up Attacks . | . . . . . . . Damage Inflicted 5439 | . 1336 102 3083 558 . 360 Guns 2255 | . 141 . 1923 35 . 156 Cannons 1291 | . 657 102 532 . . . Explosions 1730 | . 536 . 568 422 . 204 Melee 134 | . . . 60 74 . . Ramming 29 | . 2 . . 27 . . Kinetic 1722 | . . . 1531 35 . 156 Thermal 1795 | . 742 102 951 . . . Explosive 1455 | . 502 . 327 422 . 204 Electromagnetic 304 | . 90 . 214 . . . Impact 134 | . . . 60 74 . . Slashing . | . . . . . . . Piercing . | . . . . . . . Highest Corruption . | . . . . . . . Average Corruption . | . . . . . . . Corruption Purged . | . . . . . . . Corruption Blocked . | . . . . . . . Overload Shots . | . . . . . . . Overflow Damage 41 | . 1 . 28 12 . . Projectiles 1 | . 1 . . . . . Explosions 40 | . . . 28 12 . . Melee . | . . . . . . . Knockbacks 6 | . . . 5 1 . . Impact 2 | . . . 1 1 . . Kinetic 4 | . . . 4 . . . Secondary . | . . . . . . . Self-Inflicted Damage 424 | . 44 . 275 71 . 34 Shots 13 | . 2 . 7 2 . 2 Rammed 1 | . . . . 1 . . Targets Rammed 2 | . 1 . . 1 . . Kicked 1 | . 1 . . . . . Crushed . | . . . . . . . Highest Temperature 318 | . 318 243 80 30 . 152 Average Temperature 68 | . 104 122 18 13 . 69 Received Heat Transfer 1056 | . 126 27 795 . . 108 Effects 2 | . 1 1 . . . . Energy Bleed 1 | . . 1 . . . . Interference 1 | . 1 . . . . . Siege Activations . | . . . . . . . Robots Corrupted 1 | . . . 1 . . . Combat Hostiles 1 | . . . 1 . . . Parts Fried 2 | . 1 . 1 . . . Impact Corruptions 1 | . . . 1 . . . Robots Melted . | . . . . . . . Combat Hostiles . | . . . . . . . Parts Melted 5 | . 2 1 2 . . . Heat Transferred 3800 | . 1382 185 2233 . . . Parts Sabotaged . | . . . . . . . Parts Stolen . | . . . . . . . Parts Stripped . | . . . . . . . Power Chain Reactions 3 | . 1 . 2 . . . Missiles Intercepted . | . . . . . . . Alert | -11 -10 -10 -9 -9 -9 -8 ------- Run | Jun Mat Min Mat Min Exi Min Peak Influence 608 | . 171 105 608 442 . 55 Initial 237 | . . 43 . 237 . . Average 135 | . 57 49 209 197 . 30 Maximum Alert Level 2 | . . . 2 2 . . Low Security (%) 75 | . 100 100 59 48 . 100 Level 1 12 | . . . 21 26 . . Level 2 12 | . . . 19 25 . . Level 3 . | . . . . . . . Level 4 . | . . . . . . . Level 5 . | . . . . . . . High Security . | . . . . . . . Max Security . | . . . . . . . Squads Dispatched 8 | . 1 1 5 1 . . Investigation 4 | . . . 3 1 . . Extermination . | . . . . . . . Reinforcement 2 | . 1 . 1 . . . Assault 2 | . . 1 1 . . . Garrison . | . . . . . . . Intercept . | . . . . . . . Searches Triggered . | . . . . . . . Construction Impeded . | . . . . . . . Haulers Reinforced . | . . . . . . . Active Scanning Responses . | . . . . . . . Cargo Convoy Interrupts . | . . . . . . . Stealth | -11 -10 -10 -9 -9 -9 -8 --------- Run | Jun Mat Min Mat Min Exi Min Distress Signals 4 | . 2 . 2 . . . Communications Jammed . | . . . . . . . Distress Signals . | . . . . . . . Times Spotted 103 | . 25 6 57 8 . 7 Peak Tracking Total 8 | . 5 4 6 8 . 4 Tactical Retreats 4 | . 1 1 2 . . . Traps | -11 -10 -10 -9 -9 -9 -8 ------- Run | Jun Mat Min Mat Min Exi Min Traps Triggered 5 | . 2 . 3 . . . Indirectly . | . . . . . . . Trap Hack Attempts . | . . . . . . . Triggered . | . . . . . . . Disarmed . | . . . . . . . Reprogrammed 5 | . . . 5 . . . Reused . | . . . . . . . Traps Extracted . | . . . . . . . Installed . | . . . . . . . Triggered . | . . . . . . . Machines | -11 -10 -10 -9 -9 -9 -8 ---------- Run | Jun Mat Min Mat Min Exi Min Machines Disabled 8 | . 3 . 5 . . . Max in Single Turn 3 | . 1 . 3 . . . Machines Repaired . | . . . . . . . Machines Sabotaged . | . . . . . . . Overloaded Fab Kills . | . . . . . . . Hacking | -11 -10 -10 -9 -9 -9 -8 --------- Run | Jun Mat Min Mat Min Exi Min Machines Accessed 29 | . 10 . 13 1 5 . Terminals 18 | . 8 . 10 . . . Fabricators . | . . . . . . . Repair Stations 2 | . 1 . 1 . . . Recycling Units 3 | . 1 . 2 . . . Scanalyzers . | . . . . . . . Garrison Access . | . . . . . . . Total Hacks 103 | . 38 . 36 1 28 . Successful 69 | . 21 . 19 1 28 . Failed 34 | . 17 . 17 . . . Catastrophic 4 | . 2 . 2 . . . Database Lockouts . | . . . . . . . Manual 30 | . 14 . 15 . 1 . Terminals 59 | . 30 . 29 . . . Fabricators . | . . . . . . . Repair Stations 9 | . 6 . 3 . . . Recycling Units 6 | . 2 . 4 . . . Scanalyzers . | . . . . . . . Garrison Access . | . . . . . . . Terminal Hacks 49 | . 11 . 9 1 28 . Record 27 | . . . . . 27 . Part Schematic 2 | . 2 . . . . . Robot Analysis 3 | . 2 . 1 . . . Prototype ID Bank 5 | . 3 . 2 . . . Open Door 1 | . . . . 1 . . Branch Access Points 2 | . 1 . 1 . . . Unreport Threat 5 | . 2 . 3 . . . Locate Traps 1 | . 1 . . . . . Reprogram Traps 2 | . . . 2 . . . EX-Prototype ID Bank 1 | . . . . . 1 . Fabricator Hacks . | . . . . . . . Repair Station Hacks 6 | . 4 . 2 . . . Scan Component 3 | . 2 . 1 . . . Repair 3 | . 2 . 1 . . . Recycling Unit Hacks 6 | . 2 . 4 . . . Process 2 | . 1 . 1 . . . Report Inventory 3 | . 1 . 2 . . . Retrieve Matter 1 | . . . 1 . . . Scanalyzer . | . . . . . . . Garrison Access Hacks . | . . . . . . . Unauthorized Hacks 8 | . 4 . 4 . . . Terminals 8 | . 4 . 4 . . . Botnet 8 | . 4 . 4 . . . Fabricators . | . . . . . . . Repair Stations . | . . . . . . . Recycling Units . | . . . . . . . Scanalyzers . | . . . . . . . Garrison Access . | . . . . . . . Data Cores Recovered 3 | . 1 . 2 . . . Used 1 | . . . 1 . . . Hacking Detections 21 | . 9 . 12 . . . Full Trace Events 2 | . . . 2 . . . Feedback Events . | . . . . . . . Feedback Blocked . | . . . . . . . Robot Schematics Acquired . | . . . . . . . Robots Built . | . . . . . . . Authchips . | . . . . . . . Time . | . . . . . . . Total Robot Build Rating . | . . . . . . . Part Schematics Acquired 2 | . 2 . . . . . Parts Built . | . . . . . . . Authchips . | . . . . . . . Time . | . . . . . . . Total Part Build Rating . | . . . . . . . Parts Repaired 3 | . 2 . 1 . . . Time 96 | . 64 . 32 . . . Parts Recycled . | . . . . . . . Recycled Matter 161 | . 35 . 126 . . . Retrieved Matter 346 | . . . 346 . . . Retrieved Components . | . . . . . . . Parts Scanalyzed . | . . . . . . . Part Schematics Acquired . | . . . . . . . Parts Damaged . | . . . . . . . Bothacking | -11 -10 -10 -9 -9 -9 -8 ------------ Run | Jun Mat Min Mat Min Exi Min Used RIF Installer . | . . . . . . . Robots Hacked . | . . . . . . . Non-combat . | . . . . . . . Combat . | . . . . . . . Robot Hacks Applied . | . . . . . . . Relay Couplers Released . | . . . . . . . Fabnet Peak Effective % . | . . . . . . . Robots Rewired . | . . . . . . . Allies Hacked . | . . . . . . . Hacks Repelled . | . . . . . . . Allies | -11 -10 -10 -9 -9 -9 -8 -------- Run | Jun Mat Min Mat Min Exi Min Total Allies 5 | . . 4 . 1 . . Largest Group 4 | . . 4 3 1 . . Highest-Rated Group 71 | . . 71 40 31 . . Highest-Rated Ally 31 | . . 31 16 31 . . Total Orders . | . . . . . . . Ally Attacks 28 | . . 17 11 . . . Total Damage 357 | . . 289 68 . . . Kills 4 | . . 3 1 . . . Allies Corrupted . | . . . . . . . Allies Melted . | . . . . . . . Intel | -11 -10 -10 -9 -9 -9 -8 ------- Run | Jun Mat Min Mat Min Exi Min Robot Analysis Total 3 | . 2 . 1 . . . Derelict Logs Recovered 3 | . . 2 . 1 . . Drone Launches . | . . . . . . . Drone Recoveries . | . . . . . . . Exploration | -11 -10 -10 -9 -9 -9 -8 ------------- Run | Jun Mat Min Mat Min Exi Min Turns Passed 7852 | . 1372 1106 2397 1558 726 693 Spaces Moved 4890 | 1 922 855 1432 846 439 395 Core . | . . . . . . . Treads . | . . . . . . . Legs 683 | 1 136 . 135 411 . . Wheels 4207 | . 786 855 1297 435 439 395 Hover . | . . . . . . . Flight . | . . . . . . . Fastest Speed 105 | 120 105 120 105 165 120 165 Average Speed 134 | 120 115 120 116 172 164 165 Slowest Speed 190 | 120 190 120 180 180 165 165 Overloaded Moves . | . . . . . . . Propulsion Burnouts . | . . . . . . . Robots Hopped . | . . . . . . . Cave-ins Triggered 1 | . . . . 1 . . Exploration Rate (%) 74 | 2 99 100 92 99 73 57 Regions Visited 6 Branch Regions 4 Pre-discovered Areas 2 | . . 1 . . 1 . Known Exits Taken 2 | . 1 . 1 . . . Unknown Exits Taken 4 | 1 . 1 . 1 1 . Scrap Searched 4 | . . 1 . 2 . 1 Spaces Dug 32 | . . . 10 11 . 11 Terrain Destroyed 251 | . 76 . 130 24 . 21 Melee 4 | . . . . 2 . 2 Projectile 1 | . . . 1 . . . AOE 246 | . 76 . 129 22 . 19 Terrain Rammed . | . . . . . . . Walls Destroyed . | . . . . . . . Machines Disabled . | . . . . . . . Actions | -11 -10 -10 -9 -9 -9 -8 --------- Run | Jun Mat Min Mat Min Exi Min Total 5838 | . 1158 928 1945 942 444 421 Wait 529 | . 133 66 257 61 . 12 Move 4884 | . 921 854 1431 845 438 395 Hop . | . . . . . . . Pick Up 69 | . 18 2 37 9 2 1 Fast Attach 26 | . 11 1 12 2 . . Attach 16 | . . . 15 . . 1 Detach 5 | . 2 1 2 . . . Swap 38 | . 11 1 17 5 1 3 Drop 67 | . 17 . 35 12 3 . Fire 196 | . 44 3 138 4 . 7 Melee 6 | . . . 1 3 . 2 Ram 1 | . . . . 1 . . Kick 1 | . 1 . . . . . Crush . | . . . . . . . Escape Stasis . | . . . . . . . Rewire . | . . . . . . . Trap . | . . . . . . . Miscellaneous . | . . . . . . . Route ------- -11/Junkyard -10/Materials (discovered 5 exits: *Mat x3 / *Min x2) -10/Mines (discovered 2 exits: *Mat x2) -9/Materials (discovered 4 exits: [*Mat x3] / *Min) -9/Mines (discovered 3 exits: [*Mat x2] / *Exi) -9/Exiles (discovered 2 exits: [*Min x2]) -8/Mines (discovered 2 exits: [*Mat x2]) History --------- Turn | Location | Event 1 | -11/Junkyard | Discovered new exit (range 0) 1 | -11/Junkyard | Entered Materials 197 | -10/Materials | Discovered new exit (range 16) 309 | -10/Materials | Build established: Mutant 590 | -10/Materials | Discovered new exit (range 15) 673 | -10/Materials | Discovered new exit (range 6) 865 | -10/Materials | Repaired Arm. Wheel 898 | -10/Materials | Repaired Arm. Wheel 969 | -10/Materials | Discovered new exit (range 7) 1179 | -10/Materials | Discovered new exit (range 9) 1209 | -10/Materials | Core integrity fell below 50% 1248 | -10/Materials | Identified exit to Mines 1373 | -10/Materials | Entered Mines 1383 | -10/Mines | Met a Derelict bent on vengeance 1439 | -10/Mines | Discovered new exit (range 12) 1618 | -10/Mines | Found a hidden stash of uninstalled traps 1721 | -10/Mines | Assisted by bots powering up and referring to "LRC-V3" 1742 | -10/Mines | Learned location of Storage (-7) 1766 | -10/Mines | Met a Derelict testing a Signal Generator 1886 | -10/Mines | Discovered new exit (range 9) 1916 | -10/Mines | Found a damaged Exp. Sensor Array with a note attached 1919 | -10/Mines | Found Prototype Device 1919 | -10/Mines | Identified Exp. Sensor Array 2013 | -10/Mines | Learned Materials interactive machine intel 2479 | -10/Mines | Entered Materials 2479 | -9/Materials | Accompanied by 3 allies 2479 | -9/Materials | Evolved 2 slots: Propulsion x1, Utility x1 2480 | -9/Materials | Loaded intel: 18 interactive machine locations 2944 | -9/Materials | Discovered new exit (range 14) 3245 | -9/Materials | Discovered new exit (range 10) 3946 | -9/Materials | Discovered new exit (range 13) 4018 | -9/Materials | Repaired Arm. Wheel 4331 | -9/Materials | Identified exit to Mines 4397 | -9/Materials | Core integrity fell below 50% 4434 | -9/Materials | Discovered new exit (range 3) 4479 | -9/Materials | First assault squad dispatched 4567 | -9/Materials | Core integrity fell below 20% 4602 | -9/Materials | Lost 5 parts (1p3n1u) 4876 | -9/Materials | Entered Mines 4907 | -9/Mines | Destroyed 8 combat bots 4927 | -9/Mines | Assembled infested the area 4928 | -9/Mines | Learned Materials terminal intel 4990 | -9/Mines | Crushed by falling debris 5014 | -9/Mines | Discovered new exit (range 5) 5054 | -9/Mines | Met 8R-AWN 5162 | -9/Mines | Discovered new exit (range 8) 5317 | -9/Mines | Joined a pair of Derelicts in attacking an 0b10 outpost 5432 | -9/Mines | Met a Derelict shopkeep closing up shop 5617 | -9/Mines | A weapon hastily lodged in a ceiling crevice suddenly fell to the ground 5733 | -9/Mines | Discovered new exit (range 8) 5840 | -9/Mines | Received a Mining Laser from a helpful Derelict 5903 | -9/Mines | Received a Rocket Launcher from a helpful Derelict 6434 | -9/Mines | Entered Exiles 6459 | -9/Exiles | Discovered new exit (range 15) 6507 | -9/Exiles | Welcomed by 8R-AWN 6537 | -9/Exiles | Met EX-HEX 6601 | -9/Exiles | Met EX-DEC 6611 | -9/Exiles | Learned location of Zion (-6) 6646 | -9/Exiles | Met EX-BIN 6761 | -9/Exiles | Aligned with FarCom system 6763 | -9/Exiles | Given EX-Vault access code 6839 | -9/Exiles | Opened EX-Vault 6856 | -9/Exiles | Found YOLO Cannon 6890 | -9/Exiles | Warned to stay clear of 0b10 Research branches 7142 | -9/Exiles | Discovered new exit (range 11) 7160 | -9/Exiles | Left Exiles lab with YOLO Cannon 7160 | -9/Exiles | Entered Mines 7260 | -8/Mines | Discovered new exit (range 8) 7442 | -8/Mines | Discovered new exit (range 6) 7853 | -8/Mines | Destroyed by S-10 Pest with Light Assault Rifle Last Messages --------------- 07205_ K-01 Serf collects debris. 07206_ U-05 Engineer lays Concrete. 07209_ K-01 Serf collects debris. 07210_ U-05 Engineer lays Concrete. 07211_ U-05 Engineer builds a Wall. 07214_ K-01 Serf collects debris. 07217_ U-05 Engineer builds a Wall. 07219_ K-01 Serf collects debris. 07224_ K-01 Serf cleans the Plasma Injector. 07226_ K-01 Serf collects debris. 07260_ EXIT=FOUND 07393_ U-05 Engineer builds a Wall. 07419_ K-01 Serf collects debris. 07442_ EXIT=FOUND 07551_ K-01 Serf collects debris. 07670_ Searching scrap... 07670_ Found Imp. Terrain Scan Processor. 07670_ Found 14 Matter. 07671_ Acquired 10 matter. 07722_ K-01 Serf collects debris. Map ----- +----------------------------------------------------+ | ?????????????????????????????????????????????????? | | ?????????????????############????????????????????? | | ??????????????#### ## ##???????????????????? | | ?????????????## ! #???????????????????? | | ?????????????# #???????????????????? | | ?????????????# ## ##???????????????????? | | ?????????????# ####### ##????????????????????? | | ?????????????## ##?????# #?????????????????????? | | ??????????????###??????# #?????????????????????? | | ??????????????????????## #?????????????????????? | | ?????????????????###### ##?????????????????????? | | ????????????????## ## ##??????????????????????? | | ????????????????# #???????????????????????? | | ##??????????????# #?????????????????????? # | | ##???????????## ##?????????????????????? # | | ##??????##### ######??gg??????????????? # | | ####??## #### ???b ??????????????? # | | #### ##### #????? ?????????????? # | | ## ## #??????# ???????????? # | | ! #### #####???????# ??????????? # | | # [ ##??# #???????????# ???????### # | | ## ## #???# #???????????# ?????## | | ## !###### ##### ######???????# ##### | | # #????# #?????????# | | # #????# #??????????# | | # #????############@ #??????????# | | ## ##??????????????# #??????????## | | ?## ##########?????# #???????????## | | ??# %! #?????# #????????????# ### | | ??# ######### #?????# #????????????# ??## # | | ??## !##??######??????? ! ??????????? ???# # | | ???## ##??## ??????? ?????????? ???# # | | ????# #???# ????????= //????????#### #???# # | | ????# ###### #???????? #???????????# ????# # | | ????# ## #????????#s###???????????# ????# # | | ????# ## ##???????#s#?????????????# ???## | | ????##### ## ######??#s#?????????????# ##### | | ????????# ## ##?#s#?????????????# | | ????????# #?# #?????????????###### | | ????????###### ### #???????????????##### | | ?????????????## ########???????## #"### | | ??############# #### #???????# ## | | ??# ##??######## ######### ### | | ??# ########### ##?????????# ## | | ??# #?????????## #?????????########### # | | ??# #??????????## #??????????????????## """ | | ??# #???????????# #????????????####### """ | | ??# #???????????## #????????????# """ # | | ??# #????????????# #????????????# ## | | ??# #????????????# #???????????## #### #? | +----------------------------------------------------+ Best States ------------- Heat Dissipation 56 Energy Generation 14 Energy Capacity 280 Matter Stores 300 Matter Capacity 300 Sight Range 16 Robot Scan Range 20 Terrain Scan Density 10 Armor Coverage 375 Resistance: KI 20 Weapon Shielding 33 Evasion (%) 55 Item Schematics ----------------- Lrg. Storage Unit | -10/Materials | Hacked Lgt. Armor Plating | -10/Materials | Hacked Robot Schematics ------------------ None Fabricated ------------ Nothing Alien Tech Used ----------------- None Achievements -------------- None Challenges ------------ None Game ------ Seed CommSuperchargedLance Manual? 0 Play Time 01:13:12 Cumulative 267.1 hours Start 2023.10.07 @ 17:23:07 End 2023.10.07 @ 19:06:02 Sessions 3 Manual Loads 0 Difficulty Rogue Special Mode None Game No. 150 Rogue 106 Adventurer 44 Explorer 0 Win Type - Total 2 Types 2/0/0/0/0/0/0/0/0 Lore% 61 Gallery% 64 Achievement% 58 Wizard Run 0 Options --------- ASCII 0 Keyboard 1 Movement Vi Keybinds 1 Fullscreen 2 Font 18/X11Bold Map View 76x50 Tactical HUD 1 Map Filters NONE Filters NONE Steam 1 RUN: d711ccfb-8a23-4ef9-8068-386d6fe532a8